[Event "*** Titled Tuesday Blitz"]
[Site "Chess.com"]
[Date "2020.04.07"]
[Round "4"]
[White "NMZanette"]
[Black "JacekDubiel"]
[Result "0-1"]
[WhiteElo "2159"]
[BlackElo "2423"]
[TimeControl "180+1"]
[EndTime "13:40:33 PDT"]
[Termination "JacekDubiel won by resignation"]

1. e4 {[%clk 0:03:00.9]} 1... c5 {[%clk 0:03:00.2]} 2. Nf3 {[%clk 0:02:59.3]}
2... Nf6 {[%clk 0:03:00.6]} 3. e5 {[%clk 0:02:56.1]} 3... Nd5 {[%clk 0:03:00.6]}
4. c3 {[%clk 0:02:56]} 4... e6 {[%clk 0:03:00.2]} 5. g3 {[%clk 0:02:55.7]} 5...
d6 {[%clk 0:02:59.2]} 6. Bg2 {[%clk 0:02:53.3]} 6... Nc6 {[%clk 0:02:58.6]} 7.
exd6 {[%clk 0:02:51.1]} 7... Bxd6 {[%clk 0:02:57.6]} 8. d4 {[%clk 0:02:51.5]}
8... O-O {[%clk 0:02:49.7]} 9. O-O {[%clk 0:02:51.1]} 9... b6 {[%clk 0:02:29]}
10. Nbd2 {[%clk 0:02:41.5]} 10... cxd4 {[%clk 0:02:24.9]} 11. Nxd4 {[%clk
0:02:35.3]} 11... Nxd4 {[%clk 0:02:24.3]} 12. cxd4 {[%clk 0:02:35.9]} 12... Ba6
{[%clk 0:02:14.2]} 13. Re1 {[%clk 0:02:35]} 13... Rc8 {[%clk 0:02:14.1]} 14. Ne4
{[%clk 0:02:34.5]} 14... Nb4 {[%clk 0:02:05.9]} 15. Nxd6 {[%clk 0:02:05.6]}
15... Qxd6 {[%clk 0:02:06.8]} 16. Be4 {[%clk 0:02:05.9]} 16... Rfd8 {[%clk
0:01:41.1]} 17. Be3 {[%clk 0:02:04.1]} 17... f5 {[%clk 0:01:40.3]} 18. Bb1
{[%clk 0:01:59.2]} 18... Bb7 {[%clk 0:01:40.4]} 19. f3 {[%clk 0:01:49.8]} 19...
e5 {[%clk 0:01:14.3]} 20. Bxf5 {[%clk 0:01:38.7]} 20... Rc7 {[%clk 0:00:32.9]}
21. dxe5 {[%clk 0:01:33.4]} 21... Qe7 {[%clk 0:00:33.4]} 22. Qe2 {[%clk
0:01:17.3]} 22... g6 {[%clk 0:00:32.3]} 23. Be4 {[%clk 0:00:39.4]} 23... Bxe4
{[%clk 0:00:26.2]} 24. fxe4 {[%clk 0:00:39.8]} 24... Qxe5 {[%clk 0:00:26.9]} 25.
Bf4 {[%clk 0:00:39]} 25... Qd4+ {[%clk 0:00:26.6]} 26. Kh1 {[%clk 0:00:38.9]}
26... Rc2 {[%clk 0:00:23.6]} 27. Qe3 {[%clk 0:00:35.9]} 27... Qxb2 {[%clk
0:00:22.4]} 28. Qb3+ {[%clk 0:00:32]} 28... Qxb3 {[%clk 0:00:22.6]} 29. axb3
{[%clk 0:00:32.5]} 29... a5 {[%clk 0:00:23.1]} 30. e5 {[%clk 0:00:20.1]} 30...
Nd3 {[%clk 0:00:23.2]} 31. Red1 {[%clk 0:00:18.2]} 31... Nf2+ {[%clk 0:00:23.3]}
32. Kg1 {[%clk 0:00:18.6]} 32... Rxd1+ {[%clk 0:00:22.7]} 0-1

[Event "*** Titled Tuesday Blitz"]
[Site "Chess.com"]
[Date "2020.04.07"]
[Round "4"]
[White "SavelievAlexei"]
[Black "hedgehog280"]
[Result "1/2-1/2"]
[WhiteElo "2429"]
[BlackElo "2640"]
[TimeControl "180+1"]
[EndTime "13:40:34 PDT"]
[Termination "Game drawn by repetition"]

1. e4 {[%clk 0:03:00.9]} 1... c6 {[%clk 0:03:00.5]} 2. d4 {[%clk 0:03:00.4]}
2... d5 {[%clk 0:03:01.3]} 3. exd5 {[%clk 0:03:01]} 3... cxd5 {[%clk 0:03:01.8]}
4. Bd3 {[%clk 0:03:01.5]} 4... Nc6 {[%clk 0:03:02.4]} 5. c3 {[%clk 0:03:01.1]}
5... Nf6 {[%clk 0:03:02.9]} 6. Bf4 {[%clk 0:02:59.8]} 6... g6 {[%clk 0:02:55.9]}
7. Nd2 {[%clk 0:02:56.1]} 7... Bf5 {[%clk 0:02:56.4]} 8. Bxf5 {[%clk 0:02:54.3]}
8... gxf5 {[%clk 0:02:56.9]} 9. Ngf3 {[%clk 0:02:54.6]} 9... e6 {[%clk
0:02:56.9]} 10. Ne5 {[%clk 0:02:53.9]} 10... Nxe5 {[%clk 0:02:51.5]} 11. Bxe5
{[%clk 0:02:53.6]} 11... Bd6 {[%clk 0:02:49.3]} 12. Nf3 {[%clk 0:02:53.4]} 12...
Rg8 {[%clk 0:02:45]} 13. g3 {[%clk 0:02:48.8]} 13... Ne4 {[%clk 0:02:42.1]} 14.
Bxd6 {[%clk 0:02:40.5]} 14... Qxd6 {[%clk 0:02:41.5]} 15. Ne5 {[%clk 0:02:41.1]}
15... Qe7 {[%clk 0:02:09.3]} 16. Qa4+ {[%clk 0:02:23.1]} 16... Kf8 {[%clk
0:02:08.7]} 17. f3 {[%clk 0:02:19.9]} 17... Nf6 {[%clk 0:02:05.5]} 18. O-O-O
{[%clk 0:02:13.6]} 18... Ne8 {[%clk 0:02:01.5]} 19. g4 {[%clk 0:02:11.5]} 19...
Nd6 {[%clk 0:01:58.7]} 20. h4 {[%clk 0:02:06]} 20... f6 {[%clk 0:01:51.6]} 21.
Nd7+ {[%clk 0:02:00]} 21... Kf7 {[%clk 0:01:52]} 22. Nc5 {[%clk 0:01:52.9]}
22... fxg4 {[%clk 0:01:50.5]} 23. Rde1 {[%clk 0:01:49.7]} 23... b6 {[%clk
0:01:27.4]} 24. Nxe6 {[%clk 0:01:10.9]} 24... Ne4 {[%clk 0:01:05.5]} 25. fxe4
{[%clk 0:00:36.8]} 25... Qxe6 {[%clk 0:01:05.5]} 26. exd5 {[%clk 0:00:35.5]}
26... Qxd5 {[%clk 0:01:04.4]} 27. Qc2 {[%clk 0:00:34]} 27... Rg7 {[%clk
0:00:50]} 28. Rhf1 {[%clk 0:00:19.9]} 28... g3 {[%clk 0:00:46.4]} 29. Rf5 {[%clk
0:00:19.7]} 29... Qc6 {[%clk 0:00:39.4]} 30. Qb3+ {[%clk 0:00:13.9]} 30... Kg6
{[%clk 0:00:35.2]} 31. Qc2 {[%clk 0:00:13.7]} 31... Kf7 {[%clk 0:00:32.1]} 32.
Qb3+ {[%clk 0:00:12]} 32... Kg6 {[%clk 0:00:32.4]} 33. Qc2 {[%clk 0:00:11.9]}
33... Kf7 {[%clk 0:00:26.6]} 1/2-1/2

[Event "*** Titled Tuesday Blitz"]
[Site "Chess.com"]
[Date "2020.04.07"]
[Round "4"]
[White "letantha"]
[Black "ChristianAlm"]
[Result "0-1"]
[WhiteElo "2137"]
[BlackElo "2400"]
[TimeControl "180+1"]
[EndTime "13:40:34 PDT"]
[Termination "ChristianAlm won by resignation"]

1. e4 {[%clk 0:03:00.9]} 1... c5 {[%clk 0:02:59]} 2. c3 {[%clk 0:02:44.4]} 2...
d5 {[%clk 0:02:55.2]} 3. exd5 {[%clk 0:02:44.2]} 3... Qxd5 {[%clk 0:02:56.1]} 4.
d4 {[%clk 0:02:43.9]} 4... cxd4 {[%clk 0:02:56.5]} 5. cxd4 {[%clk 0:02:43.2]}
5... Nf6 {[%clk 0:02:56.7]} 6. Nc3 {[%clk 0:02:43.1]} 6... Qd8 {[%clk
0:02:55.2]} 7. Nf3 {[%clk 0:02:42.9]} 7... e6 {[%clk 0:02:55.1]} 8. Bd3 {[%clk
0:02:42.2]} 8... Be7 {[%clk 0:02:54.2]} 9. O-O {[%clk 0:02:42.2]} 9... O-O
{[%clk 0:02:51]} 10. Bg5 {[%clk 0:02:38.4]} 10... Nc6 {[%clk 0:02:49.7]} 11. Rc1
{[%clk 0:02:36.7]} 11... a6 {[%clk 0:02:49.1]} 12. Bb1 {[%clk 0:02:35.3]} 12...
h6 {[%clk 0:02:48.5]} 13. Bh4 {[%clk 0:02:32.5]} 13... Nd5 {[%clk 0:02:42.7]}
14. Bg3 {[%clk 0:02:28.6]} 14... Bf6 {[%clk 0:02:37.2]} 15. Ne4 {[%clk
0:02:24.6]} 15... g6 {[%clk 0:02:25.6]} 16. a3 {[%clk 0:02:20.9]} 16... Bg7
{[%clk 0:02:24.5]} 17. Qd2 {[%clk 0:02:08.5]} 17... Nf6 {[%clk 0:02:18.3]} 18.
Rfd1 {[%clk 0:01:45.2]} 18... Nxe4 {[%clk 0:02:07]} 19. Bxe4 {[%clk 0:01:46.1]}
19... Bd7 {[%clk 0:01:47.5]} 20. d5 {[%clk 0:01:45.5]} 20... exd5 {[%clk
0:01:45.8]} 21. Qxd5 {[%clk 0:01:45.6]} 21... Be6 {[%clk 0:01:44.1]} 22. Qxd8
{[%clk 0:01:43]} 22... Rfxd8 {[%clk 0:01:45]} 23. Rxd8+ {[%clk 0:01:37.8]} 23...
Rxd8 {[%clk 0:01:45.9]} 24. b4 {[%clk 0:01:29.8]} 24... Bb2 {[%clk 0:01:41.5]}
25. Rb1 {[%clk 0:01:25.9]} 25... Bxa3 {[%clk 0:01:38.2]} 26. h4 {[%clk
0:01:22.1]} 26... f5 {[%clk 0:01:23]} 27. Bxc6 {[%clk 0:01:16.7]} 27... bxc6
{[%clk 0:01:23.9]} 28. Ne5 {[%clk 0:01:17.2]} 28... g5 {[%clk 0:01:14.4]} 29.
Nxc6 {[%clk 0:01:11.1]} 29... Rd2 {[%clk 0:01:06.5]} 30. hxg5 {[%clk 0:01:00]}
30... hxg5 {[%clk 0:01:02.3]} 31. Be5 {[%clk 0:01:00.3]} 31... Rc2 {[%clk
0:00:44]} 32. Nd4 {[%clk 0:00:56.3]} 32... Rb2 {[%clk 0:00:35.1]} 33. Ra1 {[%clk
0:00:50]} 33... Ra2 {[%clk 0:00:30]} 34. Rc1 {[%clk 0:00:27.6]} 34... Bxc1
{[%clk 0:00:28.1]} 35. Nxe6 {[%clk 0:00:25.8]} 35... Bd2 {[%clk 0:00:25.4]} 36.
Bd6 {[%clk 0:00:23.6]} 36... Rb2 {[%clk 0:00:21.8]} 37. Kf1 {[%clk 0:00:16.7]}
37... Bxb4 {[%clk 0:00:20.5]} 38. Bxb4 {[%clk 0:00:17.2]} 38... Rxb4 {[%clk
0:00:20.2]} 39. Nxg5 {[%clk 0:00:18.1]} 39... a5 {[%clk 0:00:20]} 40. Nf3 {[%clk
0:00:17.3]} 40... a4 {[%clk 0:00:19.6]} 41. Nd2 {[%clk 0:00:17.5]} 41... a3
{[%clk 0:00:19.2]} 0-1

[Event "*** Titled Tuesday Blitz"]
[Site "Chess.com"]
[Date "2020.04.07"]
[Round "4"]
[White "HansCoolNiemann"]
[Black "VSERGUEI"]
[Result "1-0"]
[WhiteElo "2925"]
[BlackElo "2598"]
[TimeControl "180+1"]
[EndTime "13:40:35 PDT"]
[Termination "HansCoolNiemann won on time"]

1. Nf3 {[%clk 0:03:00.9]} 1... d5 {[%clk 0:02:59.5]} 2. c4 {[%clk 0:03:00.5]}
2... c6 {[%clk 0:02:59.5]} 3. e3 {[%clk 0:02:59.8]} 3... Nf6 {[%clk 0:02:59.5]}
4. b3 {[%clk 0:03:00.4]} 4... Bf5 {[%clk 0:02:58.6]} 5. Bb2 {[%clk 0:03:00.9]}
5... e6 {[%clk 0:02:58.8]} 6. Be2 {[%clk 0:02:55.6]} 6... Nbd7 {[%clk
0:02:58.6]} 7. Nh4 {[%clk 0:02:55.9]} 7... Bxb1 {[%clk 0:02:55.4]} 8. Rxb1
{[%clk 0:02:54.7]} 8... Bd6 {[%clk 0:02:54.7]} 9. Nf3 {[%clk 0:02:54]} 9... O-O
{[%clk 0:02:54]} 10. O-O {[%clk 0:02:51.8]} 10... e5 {[%clk 0:02:53.6]} 11. d3
{[%clk 0:02:49.2]} 11... Qe7 {[%clk 0:02:52.7]} 12. Nd2 {[%clk 0:02:46.6]} 12...
a5 {[%clk 0:02:50.2]} 13. Qc2 {[%clk 0:02:41.8]} 13... Rfe8 {[%clk 0:02:49]} 14.
Rfe1 {[%clk 0:02:41.2]} 14... h6 {[%clk 0:02:48.5]} 15. Bf1 {[%clk 0:02:41.4]}
15... Nf8 {[%clk 0:02:41.9]} 16. g3 {[%clk 0:02:39.7]} 16... Ne6 {[%clk
0:02:40.5]} 17. Bg2 {[%clk 0:02:39.5]} 17... b5 {[%clk 0:02:24.8]} 18. Nf3
{[%clk 0:02:37.4]} 18... Ng5 {[%clk 0:02:12.9]} 19. Nd2 {[%clk 0:02:28.4]} 19...
Ba3 {[%clk 0:02:05.9]} 20. Ba1 {[%clk 0:02:27.6]} 20... Bb4 {[%clk 0:02:02.8]}
21. Re2 {[%clk 0:02:23.5]} 21... Rad8 {[%clk 0:01:54.5]} 22. h4 {[%clk
0:02:23.1]} 22... Ngh7 {[%clk 0:01:52.6]} 23. Nf3 {[%clk 0:02:21.3]} 23... Ng4
{[%clk 0:01:51.7]} 24. d4 {[%clk 0:02:14.4]} 24... e4 {[%clk 0:01:42.6]} 25. Ne5
{[%clk 0:01:59.7]} 25... Nxe5 {[%clk 0:01:41.9]} 26. dxe5 {[%clk 0:02:00.6]}
26... Nf8 {[%clk 0:01:37.3]} 27. cxb5 {[%clk 0:01:55.9]} 27... cxb5 {[%clk
0:01:36.6]} 28. Qc6 {[%clk 0:01:56.4]} 28... Ng6 {[%clk 0:01:35.1]} 29. Qxb5
{[%clk 0:01:47.6]} 29... Nxe5 {[%clk 0:01:34.1]} 30. Bxe5 {[%clk 0:01:43.9]}
30... Qxe5 {[%clk 0:01:33.4]} 31. Rd1 {[%clk 0:01:44.5]} 31... Re6 {[%clk
0:01:11.7]} 32. Rc2 {[%clk 0:01:38.9]} 32... Red6 {[%clk 0:01:09.8]} 33. a3
{[%clk 0:01:29.2]} 33... Bc3 {[%clk 0:00:50.4]} 34. Qc5 {[%clk 0:01:28]} 34...
Bb2 {[%clk 0:00:37.8]} 35. Rb1 {[%clk 0:01:26]} 35... Ba1 {[%clk 0:00:37.2]} 36.
Qxa5 {[%clk 0:01:18]} 36... Qf6 {[%clk 0:00:36.3]} 37. Qe1 {[%clk 0:01:08.5]}
37... Be5 {[%clk 0:00:35.2]} 38. Rd1 {[%clk 0:01:09.1]} 38... Qe7 {[%clk
0:00:25.3]} 39. Qa5 {[%clk 0:01:02.6]} 39... f5 {[%clk 0:00:24.7]} 40. Bh3
{[%clk 0:00:58.5]} 40... Qf7 {[%clk 0:00:23.3]} 41. Rc7 {[%clk 0:00:56]} 41...
Qh5 {[%clk 0:00:20.6]} 42. Rdc1 {[%clk 0:00:53.2]} 42... Kh8 {[%clk 0:00:18.3]}
43. Rc8 {[%clk 0:00:52.4]} 43... Qf3 {[%clk 0:00:14.4]} 44. Rxd8+ {[%clk
0:00:50.6]} 1-0

[Event "*** Titled Tuesday Blitz"]
[Site "Chess.com"]
[Date "2020.04.07"]
[Round "4"]
[White "Paralinch"]
[Black "MiroMiljkovic"]
[Result "1-0"]
[WhiteElo "2923"]
[BlackElo "2596"]
[TimeControl "180+1"]
[EndTime "13:40:35 PDT"]
[Termination "Paralinch won by resignation"]

1. e4 {[%clk 0:03:00.9]} 1... c5 {[%clk 0:02:59.6]} 2. Nf3 {[%clk 0:03:01.1]}
2... Nc6 {[%clk 0:03:00.1]} 3. d4 {[%clk 0:03:01.8]} 3... cxd4 {[%clk 0:03:01]}
4. Nxd4 {[%clk 0:03:02.7]} 4... Nf6 {[%clk 0:03:01.2]} 5. Nc3 {[%clk 0:03:02.9]}
5... e5 {[%clk 0:03:01.7]} 6. Ndb5 {[%clk 0:03:03.3]} 6... d6 {[%clk 0:03:02.2]}
7. Bg5 {[%clk 0:03:03.7]} 7... a6 {[%clk 0:03:02.4]} 8. Na3 {[%clk 0:03:04.4]}
8... b5 {[%clk 0:03:03]} 9. Nd5 {[%clk 0:03:05]} 9... Be7 {[%clk 0:03:03.4]} 10.
Bxf6 {[%clk 0:03:05.6]} 10... Bxf6 {[%clk 0:03:04.3]} 11. c4 {[%clk 0:03:06.2]}
11... b4 {[%clk 0:03:03.3]} 12. Nc2 {[%clk 0:03:06.8]} 12... O-O {[%clk
0:02:58]} 13. h4 {[%clk 0:03:07.3]} 13... a5 {[%clk 0:02:54.4]} 14. g3 {[%clk
0:03:07.3]} 14... Be6 {[%clk 0:02:50]} 15. Qd2 {[%clk 0:03:07.4]} 15... Bxd5
{[%clk 0:02:43.3]} 16. cxd5 {[%clk 0:03:08.3]} 16... Nd4 {[%clk 0:02:29]} 17.
Nxd4 {[%clk 0:03:08.3]} 17... exd4 {[%clk 0:02:29.9]} 18. Bb5 {[%clk 0:03:08.8]}
18... Qb6 {[%clk 0:02:07.6]} 19. Bc6 {[%clk 0:03:01.6]} 19... Ra7 {[%clk
0:02:02.1]} 20. O-O {[%clk 0:02:57.3]} 20... a4 {[%clk 0:01:45.2]} 21. Rac1
{[%clk 0:02:55.9]} 21... a3 {[%clk 0:01:42.2]} 22. b3 {[%clk 0:02:55.6]} 22...
d3 {[%clk 0:01:30.2]} 23. Rc4 {[%clk 0:02:41.6]} 23... Bc3 {[%clk 0:01:29]} 24.
Qxd3 {[%clk 0:02:40.8]} 24... Re7 {[%clk 0:01:25.8]} 25. Kg2 {[%clk 0:02:40]}
25... g6 {[%clk 0:01:20.6]} 26. h5 {[%clk 0:02:20.9]} 26... f5 {[%clk
0:01:17.1]} 27. hxg6 {[%clk 0:02:21.1]} 27... hxg6 {[%clk 0:01:14.4]} 28. exf5
{[%clk 0:02:21.3]} 28... Rxf5 {[%clk 0:01:11.7]} 29. Rg4 {[%clk 0:02:20.6]}
29... Kf7 {[%clk 0:00:57]} 30. Rxg6 {[%clk 0:01:35.5]} 30... Kxg6 {[%clk
0:00:54.3]} 31. g4 {[%clk 0:01:35.7]} 31... Re5 {[%clk 0:00:36]} 32. Bd7 {[%clk
0:01:31.3]} 32... Kf6 {[%clk 0:00:19.9]} 33. Bxf5 {[%clk 0:01:30.3]} 33... Qd4
{[%clk 0:00:16.3]} 34. Qf3 {[%clk 0:01:27.9]} 34... Kg7 {[%clk 0:00:07.9]} 35.
Be6 {[%clk 0:01:28]} 35... Qe4 {[%clk 0:00:04.5]} 36. Rh1 {[%clk 0:01:02]} 36...
Qxf3+ {[%clk 0:00:04.2]} 37. Kxf3 {[%clk 0:01:02.9]} 37... Re1 {[%clk
0:00:04.8]} 38. Rxe1 {[%clk 0:01:01.8]} 38... Bxe1 {[%clk 0:00:05.7]} 39. Ke2
{[%clk 0:01:02.4]} 39... Bc3 {[%clk 0:00:05.5]} 40. f4 {[%clk 0:01:02.2]} 40...
Bb2 {[%clk 0:00:05.9]} 41. Kf3 {[%clk 0:01:01.9]} 41... Bc1 {[%clk 0:00:05.3]}
42. g5 {[%clk 0:01:02.3]} 42... Bd2 {[%clk 0:00:05.6]} 43. Kg4 {[%clk
0:01:02.7]} 43... Bc1 {[%clk 0:00:04.9]} 44. f5 {[%clk 0:01:03.1]} 44... Bd2
{[%clk 0:00:04.6]} 45. f6+ {[%clk 0:01:03.3]} 45... Kf8 {[%clk 0:00:03.4]} 46.
Kf5 {[%clk 0:01:03.4]} 46... Bc3 {[%clk 0:00:02.5]} 47. g6 {[%clk 0:01:03.7]}
47... Bxf6 {[%clk 0:00:03.1]} 48. Kxf6 {[%clk 0:01:03.8]} 48... Ke8 {[%clk
0:00:04]} 1-0

[Event "*** Titled Tuesday Blitz"]
[Site "Chess.com"]
[Date "2020.04.07"]
[Round "4"]
[White "littleozy"]
[Black "GreatDamnedRedSpot"]
[Result "0-1"]
[WhiteElo "2461"]
[BlackElo "2315"]
[TimeControl "180+1"]
[EndTime "13:40:35 PDT"]
[Termination "GreatDamnedRedSpot won on time"]

1. e4 {[%clk 0:03:00.9]} 1... e6 {[%clk 0:02:59.3]} 2. d4 {[%clk 0:02:59.6]}
2... d5 {[%clk 0:02:59.4]} 3. Nc3 {[%clk 0:02:58.2]} 3... dxe4 {[%clk
0:02:59.2]} 4. Nxe4 {[%clk 0:02:58.1]} 4... Bd7 {[%clk 0:02:59.5]} 5. Bd3 {[%clk
0:02:53.5]} 5... Bc6 {[%clk 0:02:59.5]} 6. Nf3 {[%clk 0:02:53.3]} 6... Nd7
{[%clk 0:02:59.3]} 7. O-O {[%clk 0:02:49.1]} 7... Ngf6 {[%clk 0:02:58.7]} 8.
Nxf6+ {[%clk 0:02:46.5]} 8... Qxf6 {[%clk 0:02:57.9]} 9. c3 {[%clk 0:02:34]}
9... Bxf3 {[%clk 0:02:56.4]} 10. gxf3 {[%clk 0:02:29.4]} 10... Bd6 {[%clk
0:02:54.9]} 11. f4 {[%clk 0:02:06.9]} 11... Bxf4 {[%clk 0:02:54]} 12. Bxf4
{[%clk 0:01:57.7]} 12... Qxf4 {[%clk 0:02:53.3]} 13. Qe2 {[%clk 0:01:55.5]}
13... Nf6 {[%clk 0:02:35.2]} 14. Qe3 {[%clk 0:01:46.2]} 14... Nd5 {[%clk
0:02:21]} 15. Qxf4 {[%clk 0:01:34]} 15... Nxf4 {[%clk 0:02:20.1]} 16. Be4 {[%clk
0:01:33.2]} 16... O-O-O {[%clk 0:02:05.8]} 17. Rfe1 {[%clk 0:01:24.3]} 17... c6
{[%clk 0:02:01.8]} 18. a4 {[%clk 0:01:14.9]} 18... Kc7 {[%clk 0:01:58.8]} 19. a5
{[%clk 0:01:13.5]} 19... Rhe8 {[%clk 0:01:54.6]} 20. Bc2 {[%clk 0:00:37.8]}
20... Re7 {[%clk 0:01:44.3]} 21. Re4 {[%clk 0:00:34.1]} 21... Nd5 {[%clk
0:01:43.1]} 22. Rae1 {[%clk 0:00:26.8]} 22... Nf6 {[%clk 0:01:32.8]} 23. R4e3
{[%clk 0:00:22.5]} 23... Rd5 {[%clk 0:01:32.2]} 24. Rg3 {[%clk 0:00:20.2]} 24...
g6 {[%clk 0:01:30.6]} 25. Rf3 {[%clk 0:00:17]} 25... Ne8 {[%clk 0:01:15.7]} 26.
a6 {[%clk 0:00:16.8]} 26... b6 {[%clk 0:01:14.3]} 27. Ra1 {[%clk 0:00:11.1]}
27... Rd8 {[%clk 0:00:36.4]} 28. b4 {[%clk 0:00:08.3]} 28... Nd6 {[%clk
0:00:35.4]} 29. Bb3 {[%clk 0:00:04.7]} 29... Ne4 {[%clk 0:00:20.2]} 30. Ra2
{[%clk 0:00:03.2]} 30... f5 {[%clk 0:00:16.5]} 31. Bc2 {[%clk 0:00:01.3]} 31...
Nf6 {[%clk 0:00:15.2]} 0-1

[Event "*** Titled Tuesday Blitz"]
[Site "Chess.com"]
[Date "2020.04.07"]
[Round "4"]
[White "IMRosen"]
[Black "northridgehawk"]
[Result "0-1"]
[WhiteElo "2454"]
[BlackElo "2305"]
[TimeControl "180+1"]
[EndTime "13:40:36 PDT"]
[Termination "northridgehawk won by checkmate"]

1. d4 {[%clk 0:03:00.9]} 1... f5 {[%clk 0:02:44]} 2. Bf4 {[%clk 0:02:59.5]} 2...
Nf6 {[%clk 0:02:43.5]} 3. e3 {[%clk 0:02:59.2]} 3... d6 {[%clk 0:02:43.5]} 4.
Nf3 {[%clk 0:02:59.5]} 4... g6 {[%clk 0:02:43.1]} 5. c4 {[%clk 0:03:00.2]} 5...
Bg7 {[%clk 0:02:43.5]} 6. Nc3 {[%clk 0:03:00.9]} 6... O-O {[%clk 0:02:44]} 7. c5
{[%clk 0:03:01.6]} 7... e6 {[%clk 0:02:33.3]} 8. Bc4 {[%clk 0:02:58.4]} 8... Qe7
{[%clk 0:02:30.7]} 9. Qb3 {[%clk 0:02:52.7]} 9... h6 {[%clk 0:02:28.6]} 10. h4
{[%clk 0:02:52.4]} 10... Nc6 {[%clk 0:02:22.5]} 11. cxd6 {[%clk 0:02:43.6]}
11... cxd6 {[%clk 0:02:22]} 12. Qa3 {[%clk 0:02:43.9]} 12... Rd8 {[%clk
0:02:10.5]} 13. Nb5 {[%clk 0:02:37.7]} 13... Ne4 {[%clk 0:02:09.4]} 14. Nd2
{[%clk 0:02:36]} 14... Nxd2 {[%clk 0:02:06.8]} 15. Kxd2 {[%clk 0:02:36]} 15...
Bf8 {[%clk 0:01:57.6]} 16. Rag1 {[%clk 0:02:06.7]} 16... Kh7 {[%clk 0:01:56.1]}
17. Kc1 {[%clk 0:01:49.7]} 17... e5 {[%clk 0:01:53.2]} 18. Bg5 {[%clk
0:01:07.2]} 18... hxg5 {[%clk 0:01:30.8]} 19. hxg5+ {[%clk 0:01:08.1]} 19... Kg7
{[%clk 0:01:31.3]} 20. e4 {[%clk 0:01:09]} 20... f4 {[%clk 0:01:28.9]} 21. g4
{[%clk 0:00:52.8]} 21... Qxg5 {[%clk 0:01:28.4]} 22. Qh3 {[%clk 0:00:36.4]}
22... Kf6 {[%clk 0:00:36.8]} 23. Nc7 {[%clk 0:00:27.8]} 23... d5 {[%clk
0:00:33.8]} 24. exd5 {[%clk 0:00:20.6]} 24... Nxd4 {[%clk 0:00:30.6]} 25. Qh8+
{[%clk 0:00:19.4]} 25... Ke7 {[%clk 0:00:27.8]} 26. Rh7+ {[%clk 0:00:18.1]}
26... Kd6 {[%clk 0:00:28.5]} 27. Nxa8 {[%clk 0:00:14.9]} 27... f3+ {[%clk
0:00:28.9]} 28. Kb1 {[%clk 0:00:14.6]} 28... Bf5+ {[%clk 0:00:29.2]} 29. Ka1
{[%clk 0:00:06.3]} 29... Nc2+ {[%clk 0:00:29.1]} 30. Kb1 {[%clk 0:00:06.9]}
30... Ne1+ {[%clk 0:00:25.5]} 31. gxf5 {[%clk 0:00:05.8]} 31... Qxf5+ {[%clk
0:00:21.9]} 32. Ka1 {[%clk 0:00:04.6]} 32... Nc2+ {[%clk 0:00:22.1]} 33. Kb1
{[%clk 0:00:04.7]} 33... Na3+ {[%clk 0:00:22.3]} 34. Ka1 {[%clk 0:00:05.4]}
34... Qb1+ {[%clk 0:00:22.2]} 35. Rxb1 {[%clk 0:00:04.2]} 35... Nc2# {[%clk
0:00:22.5]} 0-1

[Event "*** Titled Tuesday Blitz"]
[Site "Chess.com"]
[Date "2020.04.07"]
[Round "4"]
[White "hansen"]
[Black "maciek_92"]
[Result "0-1"]
[WhiteElo "3012"]
[BlackElo "2721"]
[TimeControl "180+1"]
[EndTime "13:40:37 PDT"]
[Termination "maciek_92 won on time"]

1. e4 {[%clk 0:03:00.9]} 1... c5 {[%clk 0:02:59.6]} 2. Nf3 {[%clk 0:02:58.4]}
2... e6 {[%clk 0:03:00.1]} 3. d4 {[%clk 0:02:54.9]} 3... cxd4 {[%clk 0:03:01]}
4. Nxd4 {[%clk 0:02:55.7]} 4... Nc6 {[%clk 0:03:01.5]} 5. Nc3 {[%clk 0:02:54.8]}
5... a6 {[%clk 0:03:01.9]} 6. Nxc6 {[%clk 0:02:44.7]} 6... bxc6 {[%clk
0:03:02.8]} 7. Bd3 {[%clk 0:02:45.2]} 7... d5 {[%clk 0:03:02.8]} 8. O-O {[%clk
0:02:45.9]} 8... Nf6 {[%clk 0:03:03.3]} 9. Qe2 {[%clk 0:02:42.5]} 9... Be7
{[%clk 0:02:59]} 10. Bd2 {[%clk 0:02:42]} 10... Qc7 {[%clk 0:02:58.5]} 11. Rae1
{[%clk 0:02:41.7]} 11... O-O {[%clk 0:02:53.7]} 12. Kh1 {[%clk 0:02:36]} 12...
Re8 {[%clk 0:02:36.4]} 13. f4 {[%clk 0:02:32.2]} 13... c5 {[%clk 0:02:21.3]} 14.
e5 {[%clk 0:01:48.8]} 14... c4 {[%clk 0:01:47.7]} 15. exf6 {[%clk 0:01:47.9]}
15... cxd3 {[%clk 0:01:46.7]} 16. Qxd3 {[%clk 0:01:20.6]} 16... gxf6 {[%clk
0:01:44.8]} 17. f5 {[%clk 0:01:14.5]} 17... Kh8 {[%clk 0:01:00.3]} 18. Bh6
{[%clk 0:00:46.7]} 18... Qc4 {[%clk 0:00:37.2]} 19. Qh3 {[%clk 0:00:40.8]} 19...
e5 {[%clk 0:00:31.3]} 20. Qh5 {[%clk 0:00:37]} 20... d4 {[%clk 0:00:28.2]} 21.
b3 {[%clk 0:00:17.7]} 21... Qxc3 {[%clk 0:00:21.7]} 22. Qxf7 {[%clk 0:00:17.7]}
22... Rg8 {[%clk 0:00:22.2]} 23. Qxe7 {[%clk 0:00:18.3]} 23... Qc6 {[%clk
0:00:22.2]} 24. Rf3 {[%clk 0:00:13.9]} 24... Bb7 {[%clk 0:00:21]} 25. Ref1
{[%clk 0:00:05.2]} 25... Rg4 {[%clk 0:00:17.2]} 26. h3 {[%clk 0:00:04.2]} 26...
Rgg8 {[%clk 0:00:15.4]} 27. Kh2 {[%clk 0:00:03.2]} 27... Rae8 {[%clk 0:00:15.7]}
28. Qf7 {[%clk 0:00:03.5]} 28... Rd8 {[%clk 0:00:13]} 29. Rg3 {[%clk 0:00:03.1]}
29... Rxg3 {[%clk 0:00:11.7]} 30. Kxg3 {[%clk 0:00:02.8]} 30... Rg8+ {[%clk
0:00:09.8]} 31. Kh4 {[%clk 0:00:01.8]} 31... Qe4+ {[%clk 0:00:09]} 32. g4 {[%clk
0:00:01.5]} 32... Qc6 {[%clk 0:00:08.9]} 0-1